Cogmind - Beta 16.1 @@@ ROGUE MODE // 2026.02.17 @ 14:28:45 Player: Pekeps Result: Destroyed by Autobeam Turret with Autobeam Performance ------------- Evolutions (0) 0 Regions Visited (2) 400 Robots Destroyed (5) 25 Value Destroyed (134) 134 Prototype IDs (0) 0 Alien Tech Used (0) 0 Bonus (0) 0 TOTAL SCORE: 559 Bonus ------- None Cogmind --------- Core Integrity 0/250 Matter 300/300 Energy 199/200 System Corruption 0% Temperature Cool (24) Movement Core (200) Ox3 Location -10/Subcaves Parts ------- > --- POWER (1) -------- Subdweller Power Source > --- PROPULSION (2) --- (None) > --- UTILITY (2) ------ Small Storage Unit > --- WEAPON (2) ------- Light Assault Rifle > --- INVENTORY (8) ---- Light Treads Light Treads Subdweller Monowheel Subdweller Monowheel Small Laser Peak State ------------ > --- POWER ------------ Subdweller Power Source > --- PROPULSION ------- Subdweller Monowheel Subdweller Monowheel > --- UTILITY ---------- Small Storage Unit Sensor Array > --- WEAPON ----------- Small Laser Light Assault Rifle > --- INVENTORY -------- Subdweller Power Source Light Treads Light Treads [Rating: 10] Favorites ----------- Power Subdweller Power Source Engine Subdweller Power Source Propulsion Wheel Wheel Wheel Flight Unit Makeshift Flight Unit Utility Small Storage Unit Device Sensor Array Storage Small Storage Unit Weapon Small Laser Energy Gun Small Laser Ballistic Gun Light Assault Rifle Build | -11 -10 -10 ------- Run | Yrd Mat Sub Slots Evolved . | . . . Power . | . . . Propulsion . | . . . Utility . | . . . Weapon . | . . . Parts Attached 15 | 7 2 6 Power 3 | 1 . 2 Engine 3 | 1 . 2 Core . | . . . Reactor . | . . . Propulsion 6 | 2 . 4 Treads . | . . . Leg . | . . . Wheel 5 | 2 . 3 Hover . | . . . Flight 1 | . . 1 Utility 2 | 1 1 . Device 1 | . 1 . Storage 1 | 1 . . Processor . | . . . Hackware . | . . . Protection . | . . . Artifact . | . . . Weapon 4 | 3 1 . Energy Gun 3 | 2 1 . Energy Cannon . | . . . Ballistic Gun 1 | 1 . . Ballistic Cannon . | . . . Launcher . | . . . Special Weapon . | . . . Impact Weapon . | . . . Slashing Weapon . | . . . Piercing Weapon . | . . . Special Melee Weapon . | . . . Unidentified Prototypes . | . . . Parts Lost 7 | . . 7 Power 1 | . . 1 Propulsion 3 | . . 3 Utility 1 | . . 1 Weapon 2 | . . 2 Highest Loss Streak 5 | . . 5 To Critical Strikes . | . . . Average Backups 3 | 1 3 3 Power . | . . . Propulsion 2 | . 2 2 Utility . | . . . Weapon . | . 1 . Tool/Special . | . . . Unused Backups 2 | . . 2 Power . | . . . Propulsion 2 | . . 2 Utility . | . . . Weapon . | . . . Tool/Special . | . . . Average Slot Usage (%) 86 | . 93 84 Engine 13 | . 14 13 Wheel 13 | . 28 8 Flight 4 | . . 6 Device 12 | . 7 13 Storage 14 | . 14 14 Energy Gun 18 | . 28 15 Ballistic Gun 8 | . . 11 Peak Build Rating 10 | 6 7 10 Average Rating 7 | 4 6 8 On Entrance 4 | . 6 7 Avg Prop Armor Cover (%) . | . . . Naked Turns . | . . . Heaviest Build 14 | 13 14 14 Greatest Support 40 | 26 26 40 Greatest Overweight (x) 4 | . . 4 Average Overweight (x) . | . . . Largest Inventory Capacity 8 | 8 8 8 Average Capacity 7 | 7 8 8 Most Carried 5 | 3 4 5 Average Carried 3 | 1 3 3 Final Capacity 8 | 8 8 8 Final Carried 5 | 3 4 5 Class Distribution -------------------- 100% | Mutant Dominant Class ---------------- Mutant | -10/Materials Mutant | -10/Subcaves Resources | -11 -10 -10 ----------- Run | Yrd Mat Sub Matter Collected 381 | 171 109 101 Remotely . | . . . Salvage Created 168 | . 114 54 Parts 10 | . 6 4 Haulers Intercepted . | . . . Recyclers Shooed . | . . . Parts Field Recycled . | . . . Retrieved Matter . | . . . Parts Self-Destructed 12 | . . 12 Prevented . | . . . Parts Restored . | . . . Kills | -11 -10 -10 ------- Run | Yrd Mat Sub Combat Hostiles Destroyed 4 | . 2 2 Guns 4 | . 2 2 Classes Destroyed 4 | . 2 2 Operator 1 | . 1 . Swarmer 1 | . . 1 Grunt 2 | . 2 . Subdweller 1 | . . 1 Best Kill Streak 2 | . 2 1 Combat Bots Only 2 | . 2 1 Max Kills in Single Turn 1 | . 1 1 Gunslinging . | . . . Exploded . | . . . Melee . | . . . Uniques/NPCs Destroyed . | . . . Combat | -11 -10 -10 -------- Run | Yrd Mat Sub Hostile Shots Fired 102 | . 17 85 Missed 47 | . 7 40 Hits 55 | . 10 45 Projectile 55 | . 10 45 AOE 6 | . . 6 Critical Strikes 1 | . . 1 Damage Taken 802 | . 107 695 Core 256 | . 20 236 Absorbed by Shields . | . . . Core Remaining (%) 100 | 100 . . Volleys Fired 25 | . 12 13 Largest 2 | . 2 2 Hottest 80 | . 80 60 Shots Fired 47 | . 24 23 Gun 47 | . 24 23 Cannon . | . . . Launcher . | . . . Special . | . . . Kinetic 11 | . . 11 Thermal 24 | . 12 12 Explosive . | . . . Electromagnetic 12 | . 12 . Robot Hit Streak 16 | . 12 16 Robot Miss Streak 3 | . 3 1 Penetration Max . | . . . Secondary Targets 1 | . . 1 Max Gunslinging Chain 1 | . . 1 Shots Hit Robots 34 | . 16 18 Core Hits 10 | . 6 4 Critical Kills . | . . . Critical Parts Destroyed . | . . . Critical Strikes . | . . . Melee Attacks . | . . . Impact . | . . . Slashing . | . . . Piercing . | . . . Sneak Attacks . | . . . Combat Hostiles . | . . . Follow-up Attacks . | . . . Damage Inflicted 365 | . 195 170 Guns 365 | . 195 170 Cannons . | . . . Explosions . | . . . Melee . | . . . Ramming . | . . . Kinetic 71 | . . 71 Thermal 200 | . 101 99 Explosive . | . . . Electromagnetic 94 | . 94 . Impact . | . . . Slashing . | . . . Piercing . | . . . Highest Corruption . | . . . Average Corruption . | . . . Corruption Purged . | . . . Corruption Blocked . | . . . Overload Shots . | . . . Overflow Damage . | . . . Projectiles . | . . . Explosions . | . . . Melee . | . . . Knockbacks . | . . . Impact . | . . . Kinetic . | . . . Secondary . | . . . Self-Inflicted Damage . | . . . Shots . | . . . Rammed 1 | . 1 . Targets Rammed 1 | . 1 . Kicked . | . . . Crushed . | . . . Highest Temperature 188 | . 188 14 Average Temperature 63 | . 70 7 Received Heat Transfer 276 | . 60 216 Siege Activations . | . . . Martial Activations . | . . . Shielding Activations . | . . . Robots Disrupted . | . . . Combat Hostiles . | . . . Robots Corrupted . | . . . Combat Hostiles . | . . . Parts Fried . | . . . Impact Corruptions . | . . . Robots Melted . | . . . Combat Hostiles . | . . . Parts Melted . | . . . Heat Transferred 450 | . 225 225 Parts Sabotaged . | . . . Parts Stolen . | . . . Parts Stripped . | . . . Power Chain Reactions . | . . . Alert | -11 -10 -10 ------- Run | Yrd Mat Sub Maximum Alert Level . | . . . Low Security (%) 100 | 100 100 . Level 1 . | . . . Level 2 . | . . . Level 3 . | . . . Level 4 . | . . . Level 5 . | . . . High Security . | . . . Max Security . | . . . Peak Influence 45 | . 45 . Initial . | . . . Average 12 | . 16 . Influence Increases 105 | . 85 20 Destroy 0b10 Robot/C 60 | . 40 20 Destroy 0b10 Robot/NC 5 | . 5 . Destroy Leader 10 | . 10 . Lose Combat Pursuer 30 | . 30 . Influence Decreases 105 | . 70 35 Entered New Map 8 | . . 8 Time Decay 85 | . 70 15 Lost Part 12 | . . 12 Squads Dispatched 2 | . 2 . Investigation . | . . . Extermination . | . . . Reinforcement 2 | . 2 . Assault . | . . . Garrison . | . . . Intercept . | . . . Searches Triggered . | . . . Construction Impeded . | . . . Haulers Reinforced . | . . . Active Scanning Responses . | . . . Cargo Convoy Interrupts . | . . . Stealth | -11 -10 -10 --------- Run | Yrd Mat Sub Distress Signals . | . . . Communications Jammed . | . . . Distress Signals . | . . . Times Spotted 26 | . 8 18 Peak Tracking Total 6 | . 2 6 Tactical Retreats 1 | . 1 . Traps | -11 -10 -10 ------- Run | Yrd Mat Sub Traps Triggered . | . . . Indirectly . | . . . Trap Hack Attempts . | . . . Triggered . | . . . Disarmed . | . . . Reprogrammed . | . . . Reused . | . . . Traps Extracted . | . . . Installed . | . . . Triggered . | . . . Machines | -11 -10 -10 ---------- Run | Yrd Mat Sub Machines Disabled . | . . . Max in Single Turn . | . . . Machines Repaired . | . . . Machines Dismantled . | . . . Machines Sabotaged . | . . . Overloaded Fab Kills . | . . . Hacking | -11 -10 -10 --------- Run | Yrd Mat Sub Machines Accessed . | . . . Terminals . | . . . Fabricators . | . . . Repair Stations . | . . . Recycling Units . | . . . Scanalyzers . | . . . Garrison Access . | . . . Total Hacks . | . . . Successful . | . . . Failed . | . . . Catastrophic . | . . . Database Lockouts . | . . . Manual . | . . . Terminals . | . . . Fabricators . | . . . Repair Stations . | . . . Recycling Units . | . . . Scanalyzers . | . . . Garrison Access . | . . . Terminal Hacks . | . . . Fabricator Hacks . | . . . Repair Station Hacks . | . . . Recycling Unit Hacks . | . . . Scanalyzer . | . . . Garrison Access Hacks . | . . . Unauthorized Hacks . | . . . Terminals . | . . . Fabricators . | . . . Repair Stations . | . . . Recycling Units . | . . . Scanalyzers . | . . . Garrison Access . | . . . Data Cores Recovered . | . . . Used . | . . . Hacking Detections . | . . . Full Trace Events . | . . . Feedback Events . | . . . Feedback Blocked . | . . . Robot Schematics Acquired . | . . . Robots Built . | . . . Authchips . | . . . Time . | . . . Total Robot Build Rating . | . . . Part Schematics Acquired . | . . . Parts Built . | . . . Authchips . | . . . Time . | . . . Total Part Build Rating . | . . . Part Studies Acquired . | . . . Parts Repaired . | . . . Time . | . . . Parts Recycled . | . . . Recycled Matter . | . . . Retrieved Matter . | . . . Retrieved Components . | . . . Parts Scanalyzed . | . . . Part Schematics Acquired . | . . . Parts Damaged . | . . . Bothacking | -11 -10 -10 ------------ Run | Yrd Mat Sub Used RIF Installer . | . . . Robots Hacked . | . . . Non-combat . | . . . Combat . | . . . Robot Hacks Applied . | . . . Relay Couplers Released . | . . . Fabnet Peak Effective % . | . . . Robots Rewired . | . . . Allies Hacked . | . . . Hacks Repelled . | . . . Allies | -11 -10 -10 -------- Run | Yrd Mat Sub Total Allies . | . . . Largest Group . | . . . Highest-Rated Group . | . . . Highest-Rated Ally . | . . . Total Orders . | . . . Ally Attacks . | . . . Total Damage . | . . . Kills . | . . . Allies Corrupted . | . . . Allies Melted . | . . . Intel | -11 -10 -10 ------- Run | Yrd Mat Sub Active Infowar (turns) 814 | . 122 692 Sensors 814 | . 122 692 Robot Analysis Total . | . . . Derelict Logs Recovered . | . . . Drone Launches . | . . . Drone Recoveries . | . . . Exploration | -11 -10 -10 ------------- Run | Yrd Mat Sub Turns Passed 974 | 66 208 700 Spaces Moved 786 | 61 187 538 Core 30 | 2 . 28 Treads . | . . . Legs . | . . . Wheels 545 | 59 187 299 Hover . | . . . Flight 211 | . . 211 Fastest Speed 50 | 50 90 90 Average Speed 111 | 88 90 121 Slowest Speed 250 | 90 90 250 Overloaded Moves . | . . . Propulsion Burnouts . | . . . Robots Hopped . | . . . Potential Cave-ins 2 | . . 2 Cave-ins Triggered . | . . . Exploration Rate (%) 14 | 3 15 24 Regions Visited 2 Branch Regions 1 Pre-discovered Areas . | . . . Known Exits Taken . | . . . Unknown Exits Taken 2 | 1 1 . Scrap Searched 2 | . . 2 Spaces Dug . | . . . Terrain Destroyed . | . . . Melee . | . . . Projectile . | . . . AOE . | . . . Terrain Rammed . | . . . Walls Destroyed . | . . . Machines Disabled . | . . . Actions | -11 -10 -10 --------- Run | Yrd Mat Sub Total 837 | 70 201 566 Wait . | . . . Move 784 | 60 186 538 Hop . | . . . Pick Up 3 | 2 . 1 Fast Attach 11 | 7 1 3 Attach 3 | . . 3 Detach 4 | 1 . 3 Swap 4 | . 1 3 Drop 2 | . . 2 Fire 25 | . 12 13 Melee . | . . . Ram 1 | . 1 . Kick . | . . . Crush . | . . . Escape Stasis . | . . . Rewire . | . . . Trap . | . . . Miscellaneous . | . . . Route ------- -11/Scrapyard -10/Materials -10/Subcaves (discovered 1 exit: [*Rec]) History --------- Turn | Location | Event 9 | -11/Scrapyard | Discovered new exit (range 15) 67 | -11/Scrapyard | Entered Materials 256 | -10/Materials | Discovered new exit (range 12) 275 | -10/Materials | Entered Subcaves 303 | -10/Subcaves | Build established: Mutant 371 | -10/Subcaves | Ambushed by swarm of Subdwellers 376 | -10/Subcaves | Ambushed by Subdweller buried in earth 378 | -10/Subcaves | Ambushed by Subdwellers from Twisted Machinery 378 | -10/Subcaves | Ambushed by Subdwellers from Twisted Machinery 383 | -10/Subcaves | Core integrity fell below 50% 411 | -10/Subcaves | Lost 5 parts (1p2n2w) 464 | -10/Subcaves | Disturbed a concealed Subdweller 951 | -10/Subcaves | Discovered new exit (range 13) 970 | -10/Subcaves | Core integrity fell below 20% 975 | -10/Subcaves | Destroyed by Autobeam Turret with Autobeam Last Messages --------------- Lgt. Assault Rifle fries itself beyond repair. Acquired 1 matter. Subatomizers dissect the Lgt. Assault Rifle. EXIT=FOUND Flight Unit fries itself beyond repair. Machine disabled. Lgt. Assault Rifle fries itself beyond repair. 9J-TS2(g) destroyed. Acquired 1 matter. Lgt. Ion Engine fries itself beyond repair. Acquired 1 matter. Flight Unit fries itself beyond repair. Acquired 1 matter. Lgt. Ion Engine fries itself beyond repair. Acquired 1 matter. Mak. Flight Unit destroyed. Acquired 1 matter. Sensor Array destroyed. Acquired 1 matter. Map ----- +----------------------------------------------------+ | ?????????????????????????????????????????####### | | ??????????????????????????????????????#### # # | | ??????????????????????????????????????# | | ?????????????????????????????????????## # # ### | | ?????????????????????????????????????# # # # ### | | ?????????????????????????????????????# | | ?????????????????????????????????????# | | ?????????????????????????????????????# ## # # ## | | ?????????????????????????????????????##?####### ## | | ?????????????????????????????????????????## ### # | | ?????????????????????????????????????????# # # | | ????????????????????????????????????????## # | | ???????????????????????????????????????## # | | ??????????????????????????????????????## | | ??????????????????????????????????????# | | ????????????????????????##???????????## | | ????????????????????#####<#####??????# | | ????????????????????#"""" """"#??????# | | ????????????????????# " " "#?????## | | ????????????????????#" t t "????### ### | | ????????????????????? ????# ### | | ?????????????????????? %?????# ##### # | | ??????????????????????? ??????# #???# ### | | ???????????????????????# #??????## #???# #### | | ???????????????????????#%% #??####?## #???# ### | | ???????????????????????# @ #??# ##?# #??## ## | | ???????????????????????# !%#### ### #??# | | ???????????????????????# %%## % ##?# | | ???????????????????????# %% # # #?## | | ???????????????????????# # #??#### | | ???????????????????????# # #?????#### | | ???????????????????????### % ##????????? | | ?????????????????????????## ## ######?????????? | | ??????????????????????????## #####??????????????? | | ???????????????????????????####??????????????????? | | ?????????????????????????????????????????????????? | | ?????????????????????????????????????????????????? | | ?????????????????????????????????????????????????? | | ?????????????????????????????????????????????????? | | ?????????????????????????????????????????????????? | | ?????????????????????????????????????????????????? | | ?????????????????????????????????????????????????? | | ?????????????????????????????????????????????????? | | ?????????????????????????????????????????????????? | | ?????????????????????????????????????????????????? | | ?????????????????????????????????????????????????? | | ?????????????????????????????????????????????????? | | ?????????????????????????????????????????????????? | | ?????????????????????????????????????????????????? | | ?????????????????????????????????????????????????? | +----------------------------------------------------+ Best States ------------- Heat Dissipation 25 Energy Generation 15 Energy Capacity 250 Matter Stores 300 Matter Capacity 300 Sight Range 16 Robot Scan Range 14 Terrain Scan Density 10 Evasion (%) 42 Item Schematics ----------------- None Robot Schematics ------------------ None Fabricated ------------ Nothing Repaired ---------- Nothing Studied --------- None Alien Tech Used ----------------- None Achievements -------------- Do Not Disturb Challenges ------------ None Game ------ Seed ConceptAssaultCalibrator Manual? 0 Play Time 00:13:29 Cumulative 2.5 hours Start 2026.02.16 @ 08:36:18 End 2026.02.17 @ 14:28:45 Sessions 2 Manual Loads 0 Difficulty Rogue Special Mode None Game No. 4 Rogue 4 Adventurer 0 Explorer 0 Win Type - Total 0 Types 0/0/0/0/0/0/0/0/0/0 Lore% 1 Gallery% 5 Achievement% 6 Wizard Run 0 Options --------- Layout 1 ASCII 1 Keyboard 1 Movement Vi Keybinds 0 Fullscreen 1 Font 24/Smallcaps Map View 50x40 Zoom Use 3% Tactical HUD 0 Map Filters NONE Filters NONE Steam 0 RUN: ac294709-3ee1-4a88-b5ae-541d68d71953